bitfinex/quotes_SOLUSD_20240918
["timestamp","ask_amount","ask_price","bid_price","bid_amount"]
[1726681262564,0.2494938,129.12,129.09,19.3654]
[1726681262565,0.2494938,129.12,129.11,9.2943491]
[1726681263566,0.2494938,129.12,129.09,19.3654]
[1726681263860,0.2494938,129.12,129.1,7.7459]
[1726681264242,0.2494938,129.12,129.09,19.3654]
[1726681264465,7.7459,129.1,129.06,27.118]
[1726681264672,0.2494938,129.12,129.07,7.7476]
[1726681264673,7.7454,129.11,129.07,7.7476]
[1726681265167,20.2494938,129.12,129.06,27.118]
[1726681265359,31.522384,129.11,129.07,7.7475]
[1726681266346,39.62890186,129.11,129.07,7.7475]
[1726681266950,31.88340186,129.11,129.08,7.7471]
[1726681267152,8.10651786,129.11,129.08,19.3673]
[1726681267770,8.10651786,129.11,129.08,27.1142]
[1726681267971,15.85221786,129.11,129.06,7.7479]
[1726681268768,7.7461,129.1,129.06,7.7479]
[1726681269076,7.7461,129.1,129.05,27.1197]
[1726681270168,7.7461,129.1,129.06,7.7482]
[1726681271675,7.7461,129.1,129.05,27.1196]
[1726681272484,44.027864,129.1,129.04,7.7491]
[1726681272660,7.7477,129.07,129.03,7.7499]
[1726681273678,16.4641,129.09,129.0,16.1259]
[1726681273679,7.7501,129.04,129.0,16.1259]
[1726681273863,7.7513,129.01,128.98,0.2494938]
[1726681274050,0.12549,129.05,128.98,0.2494938]
[1726681274257,0.12549,129.05,128.99,7.7524]
[1726681274564,23.776884,129.02,128.99,7.7524]
[1726681274751,7.7503,129.03,129.0,7.7517]
[1726681274752,20.0,129.03,129.0,7.7517]
[1726681274954,43.776884,129.04,129.0,27.1306]
[1726681275462,51.526484,129.04,129.0,27.1306]
[1726681276158,31.526484,129.04,129.0,19.3792]
[1726681276560,0.12549,129.05,128.99,7.7523]
[1726681276561,23.776884,129.02,128.99,7.7523]
[1726681276955,31.527584,129.02,128.98,8.0024938]
[1726681278081,31.527184,129.03,128.98,8.0024938]
[1726681278385,23.776884,129.03,128.99,20.9312699]
[1726681278567,23.776884,129.03,128.99,19.3809]
[1726681279063,15.86124096,129.04,128.99,19.3809]
[1726681279064,8.11154096,129.04,129.01,19.3772]
[1726681279270,7.7487,129.06,129.02,7.7506]
[1726681279458,7.7489,129.05,129.01,27.1281]
[1726681279785,7.7484,129.06,129.02,7.7507]
[1726681280280,7.7484,129.06,129.01,27.1283]
[1726681280579,23.776884,129.05,129.01,27.1283]
[1726681280779,23.776884,129.05,129.01,27.128]
[1726681281289,0.25098,129.07,129.02,9.30064004]
[1726681281579,7.7483,129.06,129.02,9.30064004]
[1726681282458,7.7483,129.06,129.03,7.7499]
[1726681282459,20.0,129.06,129.03,7.7499]
[1726681282666,31.775564,129.07,129.03,7.7499]
[1726681283761,7.7477,129.07,129.03,7.7499]
[1726681286159,8.1096134,129.08,129.06,19.3708]
[1726681286360,7.7454,129.11,129.06,27.1186]
[1726681286981,7.9942938,129.12,129.07,1.54948009]
[1726681287186,0.2494938,129.12,129.08,7.747]
[1726681287485,0.2494938,129.12,129.08,27.1143]
[1726681289263,0.2494938,129.12,129.09,7.7465]
[1726681290186,24.0263778,129.12,129.1,7.7458]
[1726681290370,0.2494938,129.12,129.11,7.7453]
[1726681290555,0.2494938,129.12,129.11,9.29435871]
[1726681293185,0.2494938,129.12,129.11,7.7453]
[1726681293464,0.2494938,129.12,129.1,27.1099]
[1726681294383,0.2494938,129.12,129.09,7.7464]
[1726681294964,0.2494938,129.12,129.08,7.7469]
[1726681295159,0.2494938,129.12,129.09,7.7464]
[1726681295567,0.2494938,129.12,129.08,7.747]
[1726681295568,7.9941938,129.12,129.08,7.747]
[1726681295782,23.776884,129.11,129.07,19.3682]
[1726681296092,8.12257,129.1,129.07,19.3682]
[1726681296302,23.776884,129.11,129.07,19.3682]
[1726681296668,23.776884,129.11,129.07,27.1154]
[1726681297278,31.522184,129.11,129.07,27.1154]
[1726681298697,31.522184,129.11,129.07,19.3682]
[1726681299800,23.776884,129.08,129.05,7.7487]
[1726681301178,23.776884,129.08,129.06,7.7482]
[1726681301579,23.776884,129.09,129.06,7.7482]
[1726681302276,23.776884,129.1,129.07,7.7472]
[1726681305683,8.10774381,129.11,129.08,7.747]
[1726681305887,15.85304381,129.11,129.07,7.7475]
[1726681306087,23.776884,129.1,129.07,7.7475]
[1726681309596,8.10774381,129.11,129.08,7.7468]
[1726681309770,8.10774381,129.11,129.09,7.7465]
[1726681309977,8.10774381,129.11,129.1,7.7459]
[1726681310675,0.2494938,129.12,129.1,7.7459]
[1726681310977,0.2494938,129.12,129.09,7.7465]
[1726681311176,24.0263778,129.12,129.09,7.7465]
[1726681312093,31.7711778,129.12,129.08,33.1889]
[1726681313586,24.0263778,129.12,129.09,7.7464]
[1726681314901,31.7711778,129.12,129.08,33.1889]
[1726681318581,7.7453,129.11,129.08,33.1889]
[1726681318788,23.776884,129.1,129.07,7.7474]
[1726681319383,23.776884,129.1,129.08,7.747]
[1726681319802,7.9943938,129.12,129.08,7.747]
[1726681320300,23.776884,129.11,129.08,7.747]
[1726681322697,31.522284,129.11,129.07,27.1167]
[1726681322884,7.746,129.1,129.07,19.3692]
[1726681323397,23.776884,129.09,129.07,19.3692]
[1726681323900,31.523784,129.09,129.05,7.7488]
[1726681325386,23.776884,129.07,129.04,27.1221]
[1726681325706,23.776884,129.07,129.05,7.7489]
[1726681326002,23.776884,129.08,129.05,7.7489]
[1726681326204,7.7461,129.1,129.06,7.7483]
[1726681326509,23.776884,129.09,129.06,7.7483]
[1726681327205,23.776884,129.09,129.07,7.7477]
[1726681328711,20.0,129.1,129.07,7.7477]
[1726681328881,7.9943938,129.12,129.08,7.7467]
[1726681329479,0.2494938,129.12,129.09,7.7464]
[1726681330102,20.2494938,129.12,129.09,7.7464]
[1726681330991,23.776884,129.11,129.07,25.9876]
[1726681331306,23.776884,129.11,129.07,33.7349]
[1726681331307,31.522684,129.11,129.07,33.7349]
[1726681335112,20.2494938,129.12,129.08,9.29644188]
[1726681335315,20.2494938,129.12,129.08,7.7471]
[1726681335812,0.2494938,129.12,129.08,7.7471]
[1726681336321,27.9942938,129.12,129.08,7.7471]
[1726681336904,27.9942938,129.12,129.07,25.9876]
[1726681336905,31.522184,129.11,129.07,33.7351]
[1726681337110,7.7459,129.1,129.07,25.9876]
[1726681337308,23.776884,129.09,129.06,7.7482]
[1726681337608,7.7456,129.11,129.07,9.29708918]
[1726681338116,23.776884,129.1,129.07,9.29708918]
[1726681339011,20.2494938,129.12,129.07,1.54948918]
[1726681339194,20.2494938,129.12,129.1,19.3648]
[1726681339195,0.2494938,129.12,129.1,19.3648]
[1726681339401,0.2494938,129.12,129.1,27.1105]
[1726681340210,0.2494938,129.12,129.1,19.3648]
[1726681344510,7.9943938,129.12,129.09,7.7465]
[1726681344694,0.2494938,129.12,129.09,27.1126]
[1726681345600,0.2494938,129.12,129.09,28.6616179]
[1726681348506,0.2494938,129.12,129.09,27.1126]
[1726681350198,0.2494938,129.12,129.1,7.7459]
[1726681350917,0.2494938,129.12,129.11,1.54901407]
[1726681351095,0.2494938,129.12,129.1,7.7459]
[1726681357401,0.2494938,129.12,129.11,9.29424388]
[1726681358024,0.2494938,129.12,129.11,28.65754388]
[1726681358400,0.2494938,129.12,129.11,27.1086]
[1726681360314,0.2494938,129.12,129.11,19.3633]
[1726681360509,0.2494938,129.12,129.1,7.7457]
[1726681363804,0.2494938,129.12,129.09,25.8705]
[1726681364410,0.2494938,129.12,129.1,7.7455]
[1726681365928,0.2494938,129.12,129.1,9.29444188]
[1726681366602,0.2494938,129.12,129.11,7.7453]
[1726681366845,0.2494938,129.12,129.11,9.29423874]
[1726681367142,0.2494938,129.12,129.11,28.65753874]
[1726681368012,0.2494938,129.12,129.11,19.3633]
[1726681374332,0.2494938,129.12,129.11,27.1086]
[1726681374510,0.2494938,129.12,129.11,28.65746788]
[1726681374906,0.2494938,129.12,129.11,27.1086]
[1726681379638,0.2494938,129.12,129.1,7.7456]
[1726681380310,0.2494938,129.12,129.09,33.6181]
[1726681380513,0.2494938,129.12,129.1,7.7458]
[1726681382910,0.2494938,129.12,129.09,33.6183]
[1726681383633,7.9942938,129.12,129.08,23.6674]
[1726681385107,7.7454,129.11,129.07,27.1167]
[1726681385727,7.746,129.1,129.07,19.3692]
[1726681385925,7.746,129.1,129.04,16.2754]
[1726681385926,7.7476,129.08,129.04,35.648]
[1726681386131,7.7467,129.09,129.06,7.7482]
[1726681386514,7.7467,129.09,129.05,7.7486]
[1726681387941,7.7471,129.08,129.04,43.3972]
[1726681389232,7.7466,129.09,129.05,7.7488]
[1726681389447,23.776884,129.09,129.06,7.7482]
[1726681391724,7.746,129.1,129.06,7.7482]
[1726681392231,7.746,129.1,129.05,7.7487]
[1726681394851,7.7466,129.09,129.05,7.7485]
[1726681396737,7.7472,129.08,129.04,43.3973]
[1726681397933,15.85362502,129.1,129.06,7.7482]
[1726681398133,8.10752502,129.1,129.06,19.3703]
[1726681398638,15.85382502,129.1,129.06,27.1183]
[1726681398956,15.85382502,129.1,129.07,1.54940628]
[1726681399458,15.85382502,129.1,129.06,27.1183]
[1726681400048,7.7463,129.1,129.06,27.1183]
[1726681400240,7.7463,129.1,129.07,1.54928223]
[1726681400636,20.0,129.11,129.07,7.7475]
[1726681400937,7.7459,129.1,129.06,27.1183]
[1726681401449,7.7467,129.09,129.05,7.7485]
[1726681402136,7.7472,129.08,129.04,24.0247]
[1726681402868,7.7473,129.08,129.04,24.0248]
[1726681403370,7.7477,129.07,129.04,16.2754]
[1726681403868,7.7473,129.08,129.04,16.2754]
[1726681404360,7.7473,129.08,129.04,24.0248]
[1726681404769,7.7467,129.09,129.05,9.29849861]
[1726681404962,20.0,129.11,129.05,32.00114049]
[1726681405165,8.35656408,129.12,129.07,11.07964188]
[1726681405462,0.2494938,129.12,129.09,7.7464]
[1726681405955,0.2494938,129.12,129.08,7.7469]
[1726681406263,7.9941938,129.12,129.08,7.7469]
[1726681410472,7.9941938,129.12,129.08,9.29600427]
[1726681410635,7.9941938,129.12,129.08,7.7469]
[1726681411957,0.2494938,129.12,129.09,9.29550496]
[1726681412153,0.2494938,129.12,129.09,7.7464]
[1726681412561,7.9942938,129.12,129.08,7.7469]
[1726681414170,7.9942938,129.12,129.07,33.1432]
[1726681414171,7.7453,129.11,129.07,33.1432]
[1726681414366,7.7453,129.11,129.08,1.54921358]
[1726681414539,7.7453,129.11,129.08,9.29631358]
[1726681414876,7.9943938,129.12,129.08,9.29631358]
[1726681415565,0.2494938,129.12,129.1,7.7455]
[1726681415741,0.2494938,129.12,129.11,1.54880792]
[1726681416145,0.2494938,129.12,129.11,9.29410792]
[1726681416746,0.2494938,129.12,129.11,7.7453]
[1726681417362,0.2494938,129.12,129.11,9.29405708]
[1726681417578,0.2494938,129.12,129.11,7.7453]
[1726681418970,0.2494938,129.12,129.11,9.29386789]
[1726681419271,0.2494938,129.12,129.11,20.49899977]
[1726681419642,0.2494938,129.12,129.11,66.96346377]
[1726681420073,0.2494938,129.15,129.14,27.47877]
[1726681420272,0.2494938,129.15,129.14,63.88323571]
[1726681420570,0.2494938,129.15,129.14,86.31983571]
[1726681420940,0.2494938,129.15,129.14,84.77189588]
[1726681421765,0.2494938,129.15,129.14,86.3196404]
[1726681421977,0.2494938,129.15,129.14,84.77189588]
[1726681441285,9.38e-05,129.15,129.14,84.77189588]
[1726681441463,0.2494938,129.19,129.18,51.247254]
[1726681441783,0.2494938,129.19,129.18,62.32689588]
[1726681442671,0.2494938,129.19,129.18,84.42519588]
[1726681443865,0.2494938,129.19,129.18,85.97254836]
[1726681445186,0.2494938,129.23,129.22,27.0855]
[1726681445497,0.2494938,129.23,129.22,27.21099]
[1726681446089,0.2494938,129.23,129.22,28.75813633]
[1726681447786,0.2494938,129.23,129.22,27.21099]
[1726681450875,0.2494938,129.23,129.22,28.75811581]
[1726681451704,0.2494938,129.23,129.22,27.21099]
[1726681451987,0.2494938,129.23,129.22,29.00909704]
[1726681452199,0.2494938,129.23,129.22,40.08873892]
[1726681452577,0.2494938,129.23,129.22,63.86562292]
[1726681454472,0.2494938,129.23,129.22,62.31849588]
[1726681455494,0.2494938,129.23,129.22,51.238854]
[1726681457578,0.2494938,129.23,129.22,27.21099]
[1726681458480,0.2494938,129.23,129.22,38.29063188]
[1726681458668,0.2494938,129.23,129.22,63.86561566]
[1726681465695,0.2494938,129.23,129.22,62.31849588]
[1726681466277,0.2494938,129.23,129.22,51.238854]
[1726681466477,0.2494938,129.23,129.22,62.31849588]
[1726681468499,0.2494938,129.23,129.22,63.86532683]
[1726681469997,0.2494938,129.23,129.22,62.31849588]
[1726681472105,0.2494938,129.23,129.22,63.86543936]
[1726681473099,0.2494938,129.23,129.22,62.31849588]
[1726681474495,0.2494938,129.23,129.22,27.21099]
[1726681475102,0.2494938,129.23,129.22,39.83767327]
[1726681475291,0.2494938,129.23,129.22,38.29063188]
[1726681475893,0.2494938,129.23,129.22,62.31849588]
[1726681477083,0.2494938,129.23,129.22,27.46197]
[1726681477284,0.2494938,129.23,129.22,27.21099]
[1726681478985,0.2494938,129.23,129.22,38.29063188]
[1726681479505,0.2494938,129.23,129.22,63.86563293]
[1726681480306,0.2494938,129.23,129.22,62.31849588]
[1726681481210,0.2494938,129.23,129.22,24.153354]
[1726681481519,0.2494938,129.23,129.18,25.27822921]
[1726681481520,7.9879938,129.23,129.18,7.7409]
[1726681481815,22.6466,129.22,129.15,3.95092813]
[1726681482020,7.7406,129.19,129.15,19.3568]
[1726681482693,22.6466,129.22,129.15,19.3568]
[1726681482694,7.74,129.2,129.15,27.0996]
[1726681482909,27.7394,129.21,129.16,7.7423]
[1726681484489,20.0,129.21,129.16,7.7423]
[1726681485188,20.0,129.21,129.17,7.7417]
[1726681486289,22.6466,129.22,129.18,7.741]
[1726681486500,22.6466,129.22,129.17,19.3534]
[1726681487082,22.6466,129.22,129.19,7.7404]
[1726681487810,22.6466,129.22,129.18,7.741]
[1726681488808,30.3853,129.22,129.18,7.741]
[1726681489010,30.3853,129.22,129.17,19.3534]
[1726681489216,7.7397,129.21,129.17,19.3534]
[1726681489411,30.3855,129.22,129.17,27.0951]
[1726681490312,8.10075827,129.21,129.17,27.0951]
[1726681490897,7.7399,129.2,129.17,19.3534]
[1726681491395,15.84015827,129.21,129.17,19.3534]
[1726681491597,7.7394,129.21,129.17,19.3534]
[1726681491800,7.7394,129.21,129.17,27.0948]
[1726681497897,22.6466,129.22,129.18,7.741]
[1726681497898,30.3855,129.22,129.18,7.741]
[1726681500104,7.7394,129.21,129.17,27.0948]
[1726681500514,7.7394,129.21,129.18,7.7411]
[1726681501421,7.7394,129.21,129.17,27.0949]
[1726681502126,15.83991685,129.21,129.17,27.0949]
[1726681502833,8.10051685,129.21,129.17,19.3534]
[1726681502998,8.10051685,129.21,129.18,7.7409]
[1726681503200,15.83991685,129.21,129.18,7.7409]
[1726681503627,15.83991685,129.21,129.17,27.0949]
[1726681503812,8.10051685,129.21,129.14,19.3579]
[1726681504014,23.776884,129.2,129.14,19.3579]
[1726681504214,7.7417,129.17,129.14,19.3579]
[1726681504603,16.0554,129.17,129.11,19.3621]
[1726681504804,7.743,129.15,129.11,27.107]
[1726681506224,7.7425,129.16,129.12,7.7446]
[1726681506434,23.7975,129.17,129.13,7.7439]
[1726681506731,7.7423,129.16,129.12,7.7444]
[1726681508309,7.7423,129.16,129.11,19.3621]
[1726681508310,7.7423,129.16,129.13,7.744]
[1726681508509,23.7973,129.17,129.13,7.744]
[1726681509943,23.7973,129.17,129.13,27.1043]
[1726681510135,24.3589,129.2,129.14,1.5483816]
[1726681510432,24.3589,129.2,129.15,1.54816602]
[1726681510733,7.7395,129.21,129.16,7.7418]
[1726681510907,7.7401,129.2,129.16,7.7418]
[1726681511111,7.7395,129.21,129.16,7.7418]
[1726681511908,7.7395,129.21,129.17,7.7416]
[1726681512528,8.10045052,129.22,129.18,9.2889563]
[1726681512718,24.6065938,129.23,129.18,7.741]
[1726681513630,7.7387,129.22,129.18,7.741]
[1726681514230,7.7387,129.22,129.17,19.354]
[1726681514231,24.6062938,129.23,129.19,7.7404]
[1726681514708,20.2494938,129.23,129.2,7.7399]
[1726681515115,0.2494938,129.23,129.21,7.7393]
[1726681515738,0.2494938,129.23,129.19,27.091]
[1726681515923,0.2494938,129.23,129.2,7.7396]
[1726681516130,0.2494938,129.23,129.21,19.3476]
[1726681516510,0.2494938,129.23,129.21,27.0864]
[1726681516710,0.2494938,129.23,129.21,19.3476]
[1726681516908,0.2494938,129.23,129.22,7.7387]
[1726681518440,0.2494938,129.23,129.22,8.11517]
[1726681518742,0.2494938,129.23,129.22,54.259154]
[1726681519125,0.2494938,129.23,129.22,55.80619224]
[1726681519735,0.2494938,129.23,129.22,54.259154]
[1726681521126,0.2494938,129.23,129.21,19.3476]
[1726681521326,0.2494938,129.23,129.21,7.7389]
[1726681524434,0.2494938,129.23,129.22,7.7387]
[1726681524849,0.2494938,129.23,129.22,7.86419]
[1726681525158,0.2494938,129.23,129.22,9.66230535]
[1726681530178,0.2494938,129.23,129.22,8.11517]
[1726681531153,0.2494938,129.23,129.22,33.43917207]
[1726681532159,0.2494938,129.23,129.22,31.892054]
[1726681534364,0.2494938,129.23,129.22,7.7387]
[1726681535858,0.2494938,129.23,129.22,7.86419]
[1726681538559,0.2494938,129.23,129.22,7.7387]
[1726681538861,0.2494938,129.23,129.2,19.3495]
[1726681539066,0.2494938,129.23,129.2,27.0893]
[1726681539662,0.2494938,129.23,129.21,7.7392]
[1726681540763,0.2494938,129.23,129.22,7.7387]
[1726681541479,0.2494938,129.23,129.22,7.86419]
[1726681545076,0.2494938,129.23,129.22,7.7387]
[1726681546148,0.2494938,129.23,129.22,7.86419]
[1726681546771,0.2494938,129.23,129.22,27.21099]
[1726681547178,0.2494938,129.23,129.22,27.0855]
[1726681547875,0.2494938,129.23,129.16,45.2876]
[1726681548178,0.2494938,129.23,129.21,7.7391]
[1726681550378,0.2494938,129.23,129.22,7.7387]
[1726681550883,0.2494938,129.23,129.21,27.0872]
[1726681552281,0.2494938,129.23,129.18,19.3515]
[1726681552574,7.9875938,129.23,129.19,7.7401]
[1726681553479,7.9875938,129.23,129.2,7.7399]
[1726681553660,0.2494938,129.23,129.2,7.7399]
[1726681554050,7.9876938,129.23,129.19,7.7402]
[1726681554456,7.9876938,129.23,129.2,7.7399]
[1726681556582,0.2494938,129.23,129.22,27.0855]
[1726681556887,0.2494938,129.23,129.22,27.21099]
[1726681557880,0.2494938,129.23,129.22,27.0855]
[1726681560772,0.2494938,129.23,129.22,19.3468]
[1726681560965,0.2494938,129.23,129.22,27.0855]
[1726681561987,0.2494938,129.23,129.2,7.7395]
[1726681562585,0.2494938,129.23,129.22,7.7387]
[1726681563774,0.2494938,129.23,129.21,27.0874]
[1726681565592,0.2494938,129.23,129.2,7.7397]
[1726681566465,7.9876938,129.23,129.19,7.7402]
[1726681567591,7.7394,129.21,129.18,19.3514]
[1726681567894,16.7563938,129.23,129.16,7.7422]
[1726681567895,7.7404,129.2,129.16,7.7422]
[1726681568299,16.7563938,129.23,129.16,7.7422]
[1726681568300,7.7394,129.21,129.16,7.7422]
[1726681568796,7.7394,129.21,129.17,7.7416]
[1726681569089,51.892254,129.22,129.17,7.7416]
[1726681569587,7.7393,129.21,129.17,7.7416]
[1726681570596,44.153354,129.19,129.12,19.3608]
[1726681570890,44.153354,129.19,129.14,19.3582]
[1726681570891,20.0,129.19,129.14,19.3582]
[1726681571073,16.6297,129.2,129.18,7.7411]
[1726681571272,16.6297,129.2,129.16,19.355]
[1726681571671,16.6297,129.2,129.17,7.7415]
[1726681571866,16.6297,129.2,129.16,27.0972]
[1726681572173,7.7388,129.22,129.17,7.7416]
[1726681572381,0.2494938,129.23,129.22,7.7387]
[1726681572706,0.2494938,129.23,129.21,7.7391]
[1726681572873,0.2494938,129.23,129.22,7.7387]
[1726681574272,8.09803679,129.26,129.23,7.738]
[1726681574273,7.34753059,129.26,129.23,7.738]
[1726681574476,7.34753059,129.26,129.22,27.0847]
[1726681575291,7.34753059,129.26,129.22,19.3462]
[1726681575691,7.34753059,129.26,129.24,7.7373]
[1726681575868,20.2494938,129.27,129.24,7.7373]
[1726681578287,23.776884,129.26,129.23,7.7379]
[1726681578792,31.513284,129.26,129.22,19.3462]
[1726681579873,8.11347,129.25,129.22,19.3462]
[1726681580078,23.776884,129.24,129.22,19.3462]
[1726681581291,7.7365,129.26,129.22,27.0847]
[1726681581599,24.153354,129.26,129.22,27.0847]
[1726681582486,31.889854,129.26,129.22,27.0847]
[1726681586401,27.9853938,129.27,129.23,7.7381]
[1726681586599,0.2494938,129.27,129.26,7.7363]
[1726681591492,0.2494938,129.27,129.26,9.28315099]
[1726681591889,0.2494938,129.27,129.26,9.28315002]
[1726681592093,0.2494938,129.27,129.26,8.11277]
[1726681593517,0.2494938,129.27,129.26,31.889654]
[1726681595719,0.2494938,129.27,129.26,40.08503519]
[1726681596199,0.2494938,129.31,129.3,27.0687]
[1726681596401,0.2494938,129.31,129.3,27.19419]
[1726681597117,0.2494938,129.31,129.3,27.0687]
[1726681600917,0.2494938,129.31,129.3,19.3348]
[1726681601297,0.2494938,129.31,129.3,27.0687]
[1726681616531,0.2494938,129.31,129.3,44.57799849]
[1726681617024,0.2494938,129.31,129.3,46.12417635]
[1726681617540,0.2494938,129.31,129.3,44.70348849]
[1726681618052,0.2494938,129.31,129.3,46.24964857]
[1726681618537,0.2494938,129.31,129.3,44.70348849]
[1726681618854,0.2494938,129.31,129.3,44.57799849]
[1726681619635,0.2494938,129.31,129.3,27.0687]
[1726681619958,0.2494938,129.31,129.3,19.3348]
[1726681620455,0.2494938,129.31,129.3,27.0687]
[1726681621426,0.2494938,129.31,129.3,62.16454753]
[1726681621657,0.2494938,129.31,129.3,72.839754]
[1726681621958,0.2494938,129.31,129.3,74.3857837]
[1726681622342,0.2494938,129.31,129.3,72.839754]
[1726681622530,0.2494938,129.31,129.3,74.38578294]
[1726681623152,0.2494938,129.35,129.34,27.0604]
[1726681623461,0.2494938,129.35,129.34,46.11544064]
[1726681623954,0.2494938,129.35,129.34,44.56969849]
[1726681624261,0.2494938,129.35,129.34,44.31871849]
[1726681626430,0.2494938,129.35,129.34,44.44420849]
[1726681626625,0.2494938,129.35,129.34,44.56969849]
[1726681627258,0.2494938,129.35,129.34,68.47207249]
[1726681628740,0.2494938,129.35,129.34,92.6239458]
[1726681628934,0.2494938,129.38,129.37,65.82839]
[1726681629152,0.2494938,129.38,129.37,83.08670849]
[1726681630047,0.2494938,129.38,129.37,65.7029]
[1726681630247,0.2494938,129.38,129.37,65.82839]
[1726681630946,0.2494938,129.38,129.37,27.0541]
[1726681634758,0.2494938,129.38,129.37,68.46577249]
[1726681634931,0.2494938,129.38,129.37,44.68888849]
[1726681635545,0.2494938,129.38,129.37,44.31241849]
[1726681636062,0.2494938,129.38,129.37,27.0541]
[1726681640884,0.2494938,129.38,129.37,27.17959]
[1726681642176,0.2494938,129.38,129.37,38.20725991]
[1726681647564,0.2494938,129.38,129.37,63.78055859]
[1726681649152,0.2494938,129.38,129.37,62.23512391]
[1726681649753,0.2494938,129.38,129.37,38.20725991]
[1726681650373,7.2241876,129.45,129.41,7.7273]
[1726681652587,7.7256,129.44,129.41,7.7273]
[1726681652879,31.502084,129.45,129.41,7.7273]
[1726681653757,31.502084,129.45,129.41,27.0456]
[1726681654478,31.502084,129.45,129.42,7.7266]
[1726681654688,24.4607237,129.46,129.42,7.7266]
[1726681655484,16.7361237,129.46,129.43,7.726]
[1726681659183,24.4608237,129.46,129.42,7.7265]
[1726681668791,24.4608237,129.46,129.41,27.0454]
[1726681668792,7.7252,129.45,129.41,27.0454]
[1726681669292,7.7252,129.45,129.42,7.7267]
[1726681669475,7.9402237,129.46,129.42,7.7267]
[1726681669687,0.2157237,129.46,129.43,7.7261]
[1726681673172,7.9401237,129.46,129.43,7.7261]
[1726681674892,0.2157237,129.46,129.43,7.7261]
[1726681675274,0.2157237,129.46,129.43,27.0415]
[1726681675696,7.9400237,129.46,129.43,19.3154]
[1726681681502,0.2157237,129.46,129.43,27.0414]
[1726681681801,0.2157237,129.46,129.39,38.6419]
[1726681681992,44.153354,129.45,129.4,19.3185]
[1726681682191,51.878654,129.45,129.41,7.7273]
[1726681682390,7.7255,129.44,129.41,7.7273]
[1726681683509,7.7255,129.44,129.36,0.0442734]
[1726681683510,0.12549,129.42,129.36,0.0442734]
[1726681683813,0.12549,129.4,129.36,0.0442734]
[1726681683979,27.7297,129.37,129.36,0.0442734]
[1726681685481,7.7287,129.39,129.36,0.0442734]
[1726681685685,20.0,129.38,129.36,0.0442734]
[1726681686006,34.6134,129.44,129.36,19.3697734]
[1726681686211,20.0,129.43,129.36,30.39744331]
[1726681686387,20.0,129.41,129.38,7.729]
[1726681688207,7.7262,129.43,129.39,7.7284]
[1726681688383,20.0,129.42,129.39,7.7284]
[1726681688704,7.7268,129.42,129.38,19.3225]
[1726681689784,20.0,129.39,129.36,0.0442734]
[1726681690286,7.7291,129.38,129.36,0.0442734]
[1726681692416,27.7286,129.39,129.36,0.0442734]
[1726681692909,23.902374,129.38,129.36,0.0442734]
[1726681693114,23.902374,129.38,129.36,7.7744734]
[1726681693115,20.0,129.38,129.36,7.7744734]
[1726681693488,7.85379,129.4,129.36,7.7744734]
[1726681693687,20.0,129.39,129.36,7.7744734]
[1726681693894,20.0,129.4,129.37,7.7296]
[1726681695925,27.728,129.4,129.36,27.1000734]
[1726681697300,7.7286,129.39,129.36,19.3699734]
[1726681697609,23.902374,129.39,129.36,0.0442734]
[1726681697819,20.0,129.38,129.36,0.0442734]
[1726681698010,27.7295,129.38,129.36,0.0442734]
[1726681698611,7.7295,129.38,129.36,0.0442734]
[1726681699119,0.12549,129.41,129.36,0.0442734]
[1726681699301,0.12549,129.42,129.36,0.0442734]
[1726681699495,20.0,129.43,129.36,0.0442734]
[1726681699496,0.12549,129.43,129.36,0.0442734]
[1726681699896,7.7276,129.41,129.37,27.0535]
[1726681700795,20.0,129.4,129.37,27.0535]
[1726681701310,7.7279,129.4,129.37,27.0535]
[1726681702216,7.7279,129.4,129.37,19.3243]
[1726681702509,7.7292,129.38,129.36,0.0442734]
[1726681702718,7.7287,129.39,129.36,0.0442734]
[1726681702899,20.0,129.38,129.36,0.0442734]
[1726681704511,7.7294,129.38,129.36,0.0442734]
[1726681705621,0.25098,129.4,129.36,0.0442734]
[1726681705806,7.7294,129.38,129.36,0.0442734]
[1726681708325,7.7297,129.37,129.36,0.0442734]